Workbook

Sheet Dislcaimer
A1: Interest Rate Derivatives Explained II (Illustrations)
A2: Novel Methods in Computational Finance
A5: This sheet does only serve for illustration purposes! It illustrates pricing using SABR PDE (No-Arbitrage SABR, Free SABR) | K5: The code comes with BSD License
K6: 'Copyright 2017 Dr. Joerg Kienitz
A7: This illustration and any accompanying material are being provided solely for information and general illustrative
A8: purposes. The author will not be responsible for the consequences of reliance upon any information contained in or | K8: 'Redistribution and use in source and binary forms, with or without modification,
A9: derived from the presentation or for any omission of information therefrom and hereby excludes all liability for loss | K9: 'are permitted provided that the following conditions are met:
A10: or damage (including, without limitation, direct, indirect, foreseeable, or consequential loss or damage and
A11: including loss or profit and even if advised of the possibility of such damages or if such damages were foreseeable) | K11: '1. Redistributions of source code must retain the above copyright notice,
A12: that may be incurred or su ered by any person in connection with the presentation, including (without limitation) | K12: 'this list of conditions and the following disclaimer.
A13: for the consequences of reliance upon any results derived therefrom or any error or omission whether negligent or
A14: not. No representation or warranty is made or given by the author that the presentation or any content thereof will | K14: '2. Redistributions in binary form must reproduce the above copyright notice,
A15: be error free, updated, complete or that inaccuracies, errors or defects will be corrected. | K15: 'this list of conditions and the following disclaimer in the documentation
A16: The views are solely that of the author. | K16: 'and/or other materials provided with the distribution.
A17: The presentation may not be reproduced in whole or part or delivered to any other person without prior permission
A18: of the author. It is accompanying material for the book Interest Rate Derivatives Explained II! | K18: '3. Neither the name of the copyright holder nor the names of its contributors
K19: 'may be used to endorse or promote products derived from this software without
A20: For comments, hints, bugs or suggestions, please, | K20: 'specific prior written permission.
A21: Contact:
A22: joerg.kienitz@gmx.de | K22: 'THIS SOFTWARE IS PROVIDED BY THE COPYRIGHT HOLDERS AND CONTRIBUTORS
K23: '"AS IS" AND ANY EXPRESS OR IMPLIED WARRANTIES, INCLUDING, BUT NOT LIMITED TO,
K24: 'THE IMPLIED WARRANTIES OF MERCHANTABILITY AND FITNESS FOR A PARTICULAR PURPOSE
K25: 'ARE DISCLAIMED. IN NO EVENT SHALL THE COPYRIGHT HOLDER OR CONTRIBUTORS BE LIABLE
K26: 'FOR ANY DIRECT, INDIRECT, INCIDENTAL, SPECIAL, EXEMPLARY, OR CONSEQUENTIAL DAMAGES
K27: '(INCLUDING, BUT NOT LIMITED TO, PROCUREMENT OF SUBSTITUTE GOODS OR SERVICES;
K28: 'LOSS OF USE, DATA, OR PROFITS; OR BUSINESS INTERRUPTION) HOWEVER CAUSED AND ON
K29: 'ANY THEORY OF LIABILITY, WHETHER IN CONTRACT, STRICT LIABILITY,
K30: 'OR TORT (INCLUDING NEGLIGENCE OR OTHERWISE) ARISING IN ANY WAY OUT OF THE USE OF
K31: 'THIS SOFTWARE, EVEN IF ADVISED OF THE POSSIBILITY OF SUCH DAMAGE.

Sheet ParametricVol
B4: a0i | C4: 0.16
B5: a1i | C5: 0.25
B6: gi | C6: 0.15
B8: 0.25
A9: T-t | B9: 0 | C9: =B9+$B$8 -> 0.25 | D9: =C9+$B$8 -> 0.5 | E9: 0.75 | F9: 1 | G9: 1.25 | H9: 1.5 | I9: 1.75 | J9: 2 | K9: 2.25 | L9: 2.5 | M9: 2.75 | N9: 3 | O9: 3.25 | P9: 3.5 | Q9: 3.75 | R9: 4 | S9: 4.25 | T9: 4.5 | U9: 4.75 | V9: 5 | W9: 5.25 | X9: 5.5 | Y9: 5.75 | Z9: 6 | AA9: 6.25 | AB9: 6.5 | AC9: 6.75 | AD9: 7 | AE9: 7.25 | AF9: 7.5 | AG9: 7.75 | AH9: 8 | AI9: 8.25 | AJ9: 8.5 | AK9: 8.75 | AL9: 9 | AM9: 9.25 | AN9: 9.5 | AO9: 9.75 | AP9: 10 | AQ9: 10.25 | AR9: 10.5 | AS9: 10.75 | AT9: 11 | AU9: 11.25 | AV9: 11.5 | AW9: 11.75 | AX9: 12 | AY9: 12.25 | AZ9: 12.5 | BA9: =AZ9+$B$8 -> 12.75 | BB9: 13 | BC9: 13.25 | BD9: 13.5 | BE9: 13.75 | BF9: 14 | BG9: 14.25 | BH9: 14.5 | BI9: 14.75 | BJ9: 15 | BK9: 15.25 | BL9: 15.5 | BM9: 15.75 | BN9: 16 | BO9: 16.25 | BP9: 16.5 | BQ9: 16.75 | BR9: 17 | BS9: 17.25 | BT9: 17.5 | BU9: 17.75 | BV9: =BU9+$B$8 -> 18 | BW9: 18.25 | BX9: 18.5 | BY9: 18.75 | BZ9: 19 | CA9: 19.25 | CB9: 19.5 | CC9: 19.75 | CD9: 20
B10: =detvol($C$4,$C$5,$C$6,B9) -> 0.16 | C10: =detvol($C$4,$C$5,$C$6,C9) -> 0.2143107579 | D10: 0.2644068936 | E10: =detvol($C$4,$C$5,$C$6,E9) -> 0.3105250781 | F10: =detvol($C$4,$C$5,$C$6,F9) -> 0.3528902703 | G10: =detvol($C$4,$C$5,$C$6,G9) -> 0.3917162583 | H10: =detvol($C$4,$C$5,$C$6,H9) -> 0.427206177 | I10: =detvol($C$4,$C$5,$C$6,I9) -> 0.4595530027 | J10: =detvol($C$4,$C$5,$C$6,J9) -> 0.4889400256 | K10: =detvol($C$4,$C$5,$C$6,K9) -> 0.5155413017 | L10: =detvol($C$4,$C$5,$C$6,L9) -> 0.5395220839 | M10: =detvol($C$4,$C$5,$C$6,M9) -> 0.5610392342 | N10: =detvol($C$4,$C$5,$C$6,N9) -> 0.580241618 | O10: =detvol($C$4,$C$5,$C$6,O9) -> 0.5972704796 | P10: =detvol($C$4,$C$5,$C$6,P9) -> 0.6122598021 | Q10: =detvol($C$4,$C$5,$C$6,Q9) -> 0.6253366501 | R10: =detvol($C$4,$C$5,$C$6,R9) -> 0.6366214979 | S10: =detvol($C$4,$C$5,$C$6,S9) -> 0.646228542 | T10: =detvol($C$4,$C$5,$C$6,T9) -> 0.6542660005 | U10: =detvol($C$4,$C$5,$C$6,U9) -> 0.6608363982 | V10: =detvol($C$4,$C$5,$C$6,V9) -> 0.6660368394 | W10: =detvol($C$4,$C$5,$C$6,W9) -> 0.6699592673 | X10: =detvol($C$4,$C$5,$C$6,X9) -> 0.6726907134 | Y10: =detvol($C$4,$C$5,$C$6,Y9) -> 0.6743135337 | Z10: =detvol($C$4,$C$5,$C$6,Z9) -> 0.6749056352 | AA10: =detvol($C$4,$C$5,$C$6,AA9) -> 0.674540692 | AB10: =detvol($C$4,$C$5,$C$6,AB9) -> 0.6732883511 | AC10: =detvol($C$4,$C$5,$C$6,AC9) -> 0.6712144294 | AD10: =detvol($C$4,$C$5,$C$6,AD9) -> 0.6683811008 | AE10: =detvol($C$4,$C$5,$C$6,AE9) -> 0.6648470756 | AF10: =detvol($C$4,$C$5,$C$6,AF9) -> 0.6606677711 | AG10: =detvol($C$4,$C$5,$C$6,AG9) -> 0.6558954743 | AH10: =detvol($C$4,$C$5,$C$6,AH9) -> 0.6505794977 | AI10: =detvol($C$4,$C$5,$C$6,AI9) -> 0.644766327 | AJ10: =detvol($C$4,$C$5,$C$6,AJ9) -> 0.6384997624 | AK10: =detvol($C$4,$C$5,$C$6,AK9) -> 0.6318210536 | AL10: =detvol($C$4,$C$5,$C$6,AL9) -> 0.6247690282 | AM10: =detvol($C$4,$C$5,$C$6,AM9) -> 0.6173802135 | AN10: =detvol($C$4,$C$5,$C$6,AN9) -> 0.6096889542 | AO10: =detvol($C$4,$C$5,$C$6,AO9) -> 0.6017275228 | AP10: =detvol($C$4,$C$5,$C$6,AP9) -> 0.593526226 | AQ10: =detvol($C$4,$C$5,$C$6,AQ9) -> 0.5851135054 | AR10: =detvol($C$4,$C$5,$C$6,AR9) -> 0.5765160342 | AS10: =detvol($C$4,$C$5,$C$6,AS9) -> 0.5677588083 | AT10: =detvol($C$4,$C$5,$C$6,AT9) -> 0.5588652341 | AU10: =detvol($C$4,$C$5,$C$6,AU9) -> 0.5498572112 | AV10: =detvol($C$4,$C$5,$C$6,AV9) -> 0.5407552121 | AW10: =detvol($C$4,$C$5,$C$6,AW9) -> 0.5315783572 | AX10: =detvol($C$4,$C$5,$C$6,AX9) -> 0.5223444868 | AY10: =detvol($C$4,$C$5,$C$6,AY9) -> 0.5130702292 | AZ10: 0.5037710661 | BA10: =detvol($C$4,$C$5,$C$6,BA9) -> 0.4944613942 | BB10: =detvol($C$4,$C$5,$C$6,BB9) -> 0.4851545841 | BC10: =detvol($C$4,$C$5,$C$6,BC9) -> 0.4758630366 | BD10: =detvol($C$4,$C$5,$C$6,BD9) -> 0.4665982357 | BE10: =detvol($C$4,$C$5,$C$6,BE9) -> 0.4573707992 | BF10: =detvol($C$4,$C$5,$C$6,BF9) -> 0.4481905274 | BG10: =detvol($C$4,$C$5,$C$6,BG9) -> 0.4390664483 | BH10: =detvol($C$4,$C$5,$C$6,BH9) -> 0.4300068616 | BI10: =detvol($C$4,$C$5,$C$6,BI9) -> 0.4210193799 | BJ10: =detvol($C$4,$C$5,$C$6,BJ9) -> 0.412110968 | BK10: =detvol($C$4,$C$5,$C$6,BK9) -> 0.4032879804 | BL10: =detvol($C$4,$C$5,$C$6,BL9) -> 0.3945561967 | BM10: =detvol($C$4,$C$5,$C$6,BM9) -> 0.3859208554 | BN10: =detvol($C$4,$C$5,$C$6,BN9) -> 0.3773866857 | BO10: =detvol($C$4,$C$5,$C$6,BO9) -> 0.3689579381 | BP10: =detvol($C$4,$C$5,$C$6,BP9) -> 0.3606384133 | BQ10: =detvol($C$4,$C$5,$C$6,BQ9) -> 0.3524314891 | BR10: =detvol($C$4,$C$5,$C$6,BR9) -> 0.3443401471 | BS10: =detvol($C$4,$C$5,$C$6,BS9) -> 0.3363669965 | BT10: =detvol($C$4,$C$5,$C$6,BT9) -> 0.3285142982 | BU10: =detvol($C$4,$C$5,$C$6,BU9) -> 0.3207839862 | BV10: =detvol($C$4,$C$5,$C$6,BV9) -> 0.3131776894 | BW10: =detvol($C$4,$C$5,$C$6,BW9) -> 0.3056967506 | BX10: =detvol($C$4,$C$5,$C$6,BX9) -> 0.298342246 | BY10: =detvol($C$4,$C$5,$C$6,BY9) -> 0.2911150026 | BZ10: =detvol($C$4,$C$5,$C$6,BZ9) -> 0.2840156155 | CA10: =detvol($C$4,$C$5,$C$6,CA9) -> 0.2770444633 | CB10: =detvol($C$4,$C$5,$C$6,CB9) -> 0.2702017238 | CC10: =detvol($C$4,$C$5,$C$6,CC9) -> 0.2634873877 | CD10: =detvol($C$4,$C$5,$C$6,CD9) -> 0.2569012728
B13: a0i | C13: 0.2
B14: a1i | C14: 0.2
B15: gi | C15: 0.3
B17: 0.25
B18: 0 | C18: =B18+$B$8 -> 0.25 | D18: =C18+$B$8 -> 0.5 | E18: 0.75 | F18: 1 | G18: 1.25 | H18: 1.5 | I18: 1.75 | J18: 2 | K18: 2.25 | L18: 2.5 | M18: 2.75 | N18: 3 | O18: 3.25 | P18: 3.5 | Q18: 3.75 | R18: 4 | S18: 4.25 | T18: 4.5 | U18: 4.75 | V18: 5 | W18: 5.25 | X18: 5.5 | Y18: 5.75 | Z18: 6 | AA18: 6.25 | AB18: 6.5 | AC18: 6.75 | AD18: 7 | AE18: 7.25 | AF18: 7.5 | AG18: 7.75 | AH18: 8 | AI18: 8.25 | AJ18: 8.5 | AK18: 8.75 | AL18: 9 | AM18: 9.25 | AN18: 9.5 | AO18: 9.75 | AP18: 10 | AQ18: 10.25 | AR18: 10.5 | AS18: 10.75 | AT18: 11 | AU18: 11.25 | AV18: 11.5 | AW18: 11.75 | AX18: 12 | AY18: 12.25 | AZ18: 12.5 | BA18: 12.75 | BB18: 13 | BC18: 13.25 | BD18: 13.5 | BE18: 13.75 | BF18: 14 | BG18: 14.25 | BH18: 14.5 | BI18: 14.75 | BJ18: 15 | BK18: 15.25 | BL18: 15.5 | BM18: 15.75 | BN18: 16 | BO18: 16.25 | BP18: =BO18+$B$8 -> 16.5 | BQ18: 16.75 | BR18: 17 | BS18: 17.25 | BT18: 17.5 | BU18: 17.75 | BV18: 18 | BW18: 18.25 | BX18: 18.5 | BY18: 18.75 | BZ18: 19 | CA18: 19.25 | CB18: 19.5 | CC18: 19.75 | CD18: 20
B19: =detvol($C$13,$C$14,$C$15,B18) -> 0.2 | C19: =detvol($C$13,$C$14,$C$15,C18) -> 0.2319358716 | D19: 0.2582123929 | E19: 0.2794806766 | F19: 0.2963272883 | G19: 0.3092801755 | H19: 0.3188140758 | I19: 0.3253554504 | J19: 0.3292869817 | K19: 0.3309516734 | L19: 0.3306565869 | M19: 0.3286762443 | N19: 0.3252557278 | O19: 0.3206135005 | P19: 0.3149439742 | Q19: 0.308419844 | R19: 0.3011942119 | S19: 0.2934025166 | T19: 0.2851642867 | U19: 0.2765847327 | V19: 0.2677561922 | W19: 0.2587594409 | X19: 0.2496648812 | Y19: 0.2405336199 | Z19: 0.2314184435 | AA19: 0.2223647019 | AB19: 0.2134111074 | AC19: 0.2045904569 | AD19: 0.1959302852 | AE19: 0.1874534536 | AF19: 0.1791786818 | AG19: 0.1711210271 | AH19: 0.1632923159 | AI19: 0.155701532 | AJ19: 0.1483551654 | AK19: 0.1412575262 | AL19: 0.1344110255 | AM19: 0.1278164272 | AN19: 0.1214730738 | AO19: 0.1153790876 | AP19: 0.1095315504 | AQ19: 0.1039266639 | AR19: 0.09855989179 | AS19: 0.0934260867 | AT19: 0.08851960176 | AU19: 0.08383438986 | AV19: 0.07936409095 | AW19: 0.07510210879 | AX19: 0.07104167836 | AY19: 0.06717592464 | AZ19: 0.06349791381 | BA19: 0.06000069771 | BB19: 0.05667735205 | BC19: 0.05352100926 | BD19: 0.05052488645 | BE19: 0.04768230904 | BF19: 0.04498673046 | BG19: 0.04243174859 | BH19: 0.040011119 | BI19: 0.0377187656 | BJ19: 0.03554878892 | BK19: 0.03349547233 | BL19: 0.03155328637 | BM19: 0.0297168916 | BN19: 0.02798113997 | BO19: =detvol($C$13,$C$14,$C$15,BO18) -> 0.02634107506 | BP19: 0.02479193125 | BQ19: 0.02332913206 | BR19: 0.02194828764 | BS19: 0.02064519174 | BT19: 0.01941581808 | BU19: 0.0182563163 | BV19: 0.01716300758 | BW19: 0.01613237992 | BX19: 0.01516108325 | BY19: 0.01424592439 | BZ19: 0.01338386183 | CA19: 0.01257200052 | CB19: 0.01180758655 | CC19: 0.01108800189 | CD19: 0.01041075914
B22: gamma1 | C22: 0.1908
B23: gamma2 | C23: 0.9746
B24: gamma3 | C24: 0.0808
B25: gamma4 | C25: 0.0134
B27: T | C27: 10
B28: tstep | C28: 0.25
A30: N | B30: N | C30: N | D30: Y | F30: 0 | G30: =$C$28+F30 -> 0.25 | H30: =$C$28+G30 -> 0.5 | I30: 0.75 | J30: 1 | K30: 1.25 | L30: 1.5 | M30: 1.75 | N30: 2 | O30: 2.25 | P30: 2.5 | Q30: 2.75 | R30: 3 | S30: =$C$28+R30 -> 3.25 | T30: =$C$28+S30 -> 3.5 | U30: 3.75 | V30: 4 | W30: 4.25 | X30: 4.5 | Y30: 4.75 | Z30: 5 | AA30: 5.25 | AB30: 5.5 | AC30: 5.75 | AD30: 6 | AE30: 6.25 | AF30: 6.5 | AG30: 6.75 | AH30: 7 | AI30: 7.25 | AJ30: 7.5 | AK30: 7.75 | AL30: 8 | AM30: =$C$28+AL30 -> 8.25 | AN30: 8.5 | AO30: 8.75 | AP30: 9 | AQ30: 9.25 | AR30: 9.5 | AS30: 9.75 | AT30: 10
A31: =IF(A30="Y",A32-0.1,A32) -> 0.1908 | B31: =IF(B30="Y",B32-0.5,B32) -> 0.9746 | C31: =IF(C30="Y",C32-0.05,C32) -> 0.0808 | D31: =IF(D30="Y",D32-0.05,D32) -> -0.0366 | E31: Base - | F31: =liborvol($A31,$B31,$C31,$D31,$C$27,F$30) -> 0.0442 | G31: =liborvol($A31,$B31,$C31,$D31,$C$27,G$30) -> 0.08949975712 | H31: 0.116919824 | I31: 0.1320745735 | J31: 0.1389863308 | K31: 0.1405113742 | L31: 0.138656143 | M31: 0.1348112161 | N31: 0.1299238381 | O31: 0.1246246288 | P31: 0.1193202241 | Q31: 0.1142606561 | R31: 0.1095880669 | S31: 0.1053716773 | T31: 0.1016326771 | U31: 0.09836176053 | V31: 0.09553132413 | W31: 0.09310381523 | X31: 0.09103732541 | Y31: 0.0892892302 | Z31: 0.08781845833 | AA31: 0.08658681308 | AB31: 0.0855596496 | AC31: 0.08470612477 | AD31: 0.08399917306 | AE31: 0.08341531498 | AF31: 0.08293437176 | AG31: 0.08253913574 | AH31: 0.08221502899 | AI31: 0.08194977059 | AJ31: 0.08173306491 | AK31: 0.08155631726 | AL31: 0.08141237965 | AM31: 0.08129532706 | AN31: 0.08120026272 | AO31: 0.08112315049 | AP31: 0.08106067161 | AQ31: 0.0810101032 | AR31: 0.08096921569 | AS31: 0.08093618687 | AT31: 0.08090952988
A32: 0.1908 | B32: 0.9746 | C32: 0.0808 | D32: 0.0134 | E32: Base | F32: =liborvol($A32,$B32,$C32,$D32,$C$27,F$30) -> 0.0942 | G32: 0.1286878523 | H32: 0.14763396 | I32: 0.1561471432 | J32: 0.1578534938 | K32: 0.1552987378 | L32: 0.1502459152 | M32: 0.143894838 | N32: 0.1370432349 | O32: 0.1302045408 | P32: 0.1236935466 | Q32: 0.1176882996 | R32: 0.1122745233 | S32: 0.1074772195 | T32: 0.1032829209 | U32: 0.09965515872 | V32: 0.09654504035 | W32: 0.09389832738 | X32: 0.09166003377 | Y32: 0.08977728529 | Z32: 0.08820097731 | AA32: 0.08688661689 | AB32: 0.0857946244 | AC32: 0.08489028906 | AD32: 0.08414351402 | AE32: 0.08352844392 | AF32: 0.08302303792 | AG32: 0.0826086289 | AH32: 0.08226949508 | AI32: 0.08199245903 | AJ32: 0.08176652249 | AK32: 0.08158254003 | AL32: 0.08143293207 | AM32: 0.08131143526 | AN32: 0.08121288771 | AO32: 0.08113304548 | AP32: 0.08106842693 | AQ32: 0.08101618152 | AR32: 0.08097397965 | AS32: 0.08093992067 | AT32: 0.08091245629
A33: =IF(A30="Y",A32+0.1,A32) -> 0.1908 | B33: =IF(B30="Y",B32+0.5,B32) -> 0.9746 | C33: =IF(C30="Y",C32+0.05,C32) -> 0.0808 | D33: =IF(D30="Y",D32+0.05,D32) -> 0.0634 | E33: Base + | F33: 0.1442 | G33: 0.1678759474 | H33: 0.178348096 | I33: 0.1802197128 | J33: 0.1767206569 | K33: 0.1700861014 | L33: 0.1618356875 | M33: 0.15297846 | N33: 0.1441626317 | O33: 0.1357844528 | P33: 0.128066869 | Q33: 0.1211159431 | R33: 0.1149609797 | S33: 0.1095827617 | T33: 0.1049331646 | U33: 0.1009485569 | V33: 0.09755875657 | W33: 0.09469283954 | X33: 0.09228274213 | Y33: 0.09026534037 | Z33: 0.08858349629 | AA33: 0.0871864207 | AB33: 0.0860295992 | AC33: 0.08507445336 | AD33: 0.08428785498 | AE33: 0.08364157287 | AF33: 0.08311170407 | AG33: 0.08267812206 | AH33: 0.08232396117 | AI33: 0.08203514748 | AJ33: 0.08179998007 | AK33: 0.08160876281 | AL33: 0.08145348448 | AM33: 0.08132754346 | AN33: 0.08122551271 | AO33: 0.08114294047 | AP33: 0.08107618224 | AQ33: 0.08102225984 | AR33: 0.08097874361 | AS33: 0.08094365448 | AT33: 0.08091538271

Sheet Libor Vola
B1: Tenor | C1: 0.5
B2: t
B3: gamma1 | C3: 0.5
B4: gamma2 | C4: 0.3
B5: gamma3 | C5: 0.2
B6: gamma4 | C6: 0.2
D8: 0.5 | E8: =D8+$C$1 -> 1 | F8: =E8+$C$1 -> 1.5 | G8: 2 | H8: 2.5 | I8: 3 | J8: 3.5 | K8: 4 | L8: 4.5 | M8: =L8+$C$1 -> 5 | N8: 5.5 | O8: 6 | P8: 6.5 | Q8: 7 | R8: 7.5 | S8: 8 | T8: =S8+$C$1 -> 8.5 | U8: 9 | V8: 9.5 | W8: 10 | X8: 10.5 | Y8: 11 | Z8: 11.5 | AA8: 12 | AB8: 12.5 | AC8: 13 | AD8: 13.5 | AE8: 14 | AF8: 14.5 | AG8: 15 | AH8: 15.5 | AI8: 16 | AJ8: 16.5 | AK8: 17 | AL8: 17.5 | AM8: =AL8+$C$1 -> 18 | AN8: 18.5 | AO8: 19 | AP8: 19.5 | AQ8: 20
B9: Base | D9: =liborvol($C$3,$C$4,$C$5,$C$6,D$8,$C$2) -> 0.5873185894 | E9: =liborvol($C$3,$C$4,$C$5,$C$6,E8,$C$2) -> 0.7185727545 | F9: 0.805746744 | G9: 0.8585739633 | H9: 0.8849315015 | I9: 0.8911684216 | J9: 0.8823786108 | K9: 0.8626272662 | L9: 0.8351386386 | M9: =liborvol($C$3,$C$4,$C$5,$C$6,M8,$C$2) -> 0.8024514324 | N9: =liborvol($C$3,$C$4,$C$5,$C$6,N8,$C$2) -> 0.7665472304 | O9: =liborvol($C$3,$C$4,$C$5,$C$6,O8,$C$2) -> 0.7289564423 | P9: =liborvol($C$3,$C$4,$C$5,$C$6,P8,$C$2) -> 0.690845547 | Q9: =liborvol($C$3,$C$4,$C$5,$C$6,Q8,$C$2) -> 0.6530887845 | R9: =liborvol($C$3,$C$4,$C$5,$C$6,R8,$C$2) -> 0.616326937 | S9: =liborvol($C$3,$C$4,$C$5,$C$6,S8,$C$2) -> 0.5810154038 | T9: =liborvol($C$3,$C$4,$C$5,$C$6,T8,$C$2) -> 0.5474634137 | U9: =liborvol($C$3,$C$4,$C$5,$C$6,U8,$C$2) -> 0.5158659099 | V9: =liborvol($C$3,$C$4,$C$5,$C$6,V8,$C$2) -> 0.4863293883 | W9: =liborvol($C$3,$C$4,$C$5,$C$6,W8,$C$2) -> 0.4588927555 | X9: =liborvol($C$3,$C$4,$C$5,$C$6,X8,$C$2) -> 0.4335440914 | Y9: =liborvol($C$3,$C$4,$C$5,$C$6,Y8,$C$2) -> 0.4102340542 | Z9: =liborvol($C$3,$C$4,$C$5,$C$6,Z8,$C$2) -> 0.3888865364 | AA9: =liborvol($C$3,$C$4,$C$5,$C$6,AA8,$C$2) -> 0.3694070792 | AB9: =liborvol($C$3,$C$4,$C$5,$C$6,AB8,$C$2) -> 0.3516894608 | AC9: =liborvol($C$3,$C$4,$C$5,$C$6,AC8,$C$2) -> 0.3356208067 | AD9: =liborvol($C$3,$C$4,$C$5,$C$6,AD8,$C$2) -> 0.3210855037 | AE9: =liborvol($C$3,$C$4,$C$5,$C$6,AE8,$C$2) -> 0.3079681531 | AF9: =liborvol($C$3,$C$4,$C$5,$C$6,AF8,$C$2) -> 0.2961557537 | AG9: =liborvol($C$3,$C$4,$C$5,$C$6,AG8,$C$2) -> 0.2855392733 | AH9: =liborvol($C$3,$C$4,$C$5,$C$6,AH8,$C$2) -> 0.2760147353 | AI9: =liborvol($C$3,$C$4,$C$5,$C$6,AI8,$C$2) -> 0.2674839258 | AJ9: =liborvol($C$3,$C$4,$C$5,$C$6,AJ8,$C$2) -> 0.2598548055 | AK9: =liborvol($C$3,$C$4,$C$5,$C$6,AK8,$C$2) -> 0.2530416951 | AL9: =liborvol($C$3,$C$4,$C$5,$C$6,AL8,$C$2) -> 0.2469652897 | AM9: =liborvol($C$3,$C$4,$C$5,$C$6,AM8,$C$2) -> 0.2415525447 | AN9: =liborvol($C$3,$C$4,$C$5,$C$6,AN8,$C$2) -> 0.236736471 | AO9: =liborvol($C$3,$C$4,$C$5,$C$6,AO8,$C$2) -> 0.2324558649 | AP9: =liborvol($C$3,$C$4,$C$5,$C$6,AP8,$C$2) -> 0.2286549966 | AQ9: 0.2252832722
B10: ="gamma1"&C10 -> gamma1-0,1 | C10: -0.1 | D10: =liborvol($C$3+$C10,$C$4,$C$5,$C$6,D$8,$C$2) -> 0.5442831906 | E10: 0.6444909324 | F10: 0.7101025213 | G10: 0.7488116361 | H10: 0.7668398633 | I10: 0.7691975236 | J10: 0.7599003986 | K10: 0.7421495814 | L10: 0.7184805213 | M10: 0.6908863523 | N10: =liborvol($C$3+$C10,$C$4,$C$5,$C$6,N$8,$C$2) -> 0.6609197807 | O10: 0.6297771094 | P10: 0.5983674004 | Q10: 0.5673692848 | R10: 0.5372775186 | S10: 0.5084410412 | T10: 0.4810939976 | U10: 0.4553809484 | V10: 0.4313772835 | W10: 0.4091056871 | X10: =liborvol($C$3+$C10,$C$4,$C$5,$C$6,X$8,$C$2) -> 0.3885493582 | Y10: 0.36966257 | Z10: 0.3523790546 | AA10: 0.3366186122 | AB10: 0.3222922785 | AC10: 0.3093063218 | AD10: 0.297565298 | AE10: 0.2869743456 | AF10: 0.2774408755 | AG10: 0.2688757785 | AH10: =liborvol($C$3+$C10,$C$4,$C$5,$C$6,AH$8,$C$2) -> 0.2611942524 | AI10: 0.2543163305 | AJ10: 0.2481671807 | AK10: 0.242677226 | AL10: 0.2377821325 | AM10: 0.233422699 | AN10: 0.2295446751 | AO10: 0.2260985306 | AP10: 0.2230391933 | AQ10: 0.2203257678
B11: ="gamma1+"&C11 -> gamma1+0,1 | C11: 0.1 | D11: 0.6303539882 | E11: 0.7926545765 | F11: 0.9013909668 | G11: 0.9683362905 | H11: 1.00302314 | I11: 1.013139319 | J11: 1.004856823 | K11: 0.983104951 | L11: 0.9517967559 | M11: 0.9140165125 | N11: 0.8721746802 | O11: 0.8281357752 | P11: 0.7833236935 | Q11: 0.7388082843 | R11: 0.6953763554 | S11: 0.6535897664 | T11: 0.6138328298 | U11: 0.5763508713 | V11: 0.5412814932 | W11: 0.5086798239 | X11: 0.4785388246 | Y11: 0.4508055383 | Z11: 0.4253940183 | AA11: 0.4021955461 | AB11: 0.3810866431 | AC11: 0.3619352916 | AD11: 0.3446057095 | AE11: 0.3289619607 | AF11: 0.314870632 | AG11: 0.3022027682 | AH11: 0.2908352183 | AI11: 0.2806515211 | AJ11: 0.2715424302 | AK11: 0.2634061643 | AL11: 0.2561484469 | AM11: 0.2496823904 | AN11: 0.2439282669 | AO11: 0.2388131993 | AP11: 0.2342708 | AQ11: 0.2302407766
B12: ="gamma2"&C12 -> gamma2-0,05 | C12: -0.05 | D12: =liborvol($C$3,$C$4+$C12,$C$5,$C$6,D$8,$C$2) -> 0.5971236062 | E12: 0.7451605481 | F12: 0.8529248149 | G12: 0.9278367917 | H12: 0.9761290714 | I12: 1.00302314 | J12: 1.012880938 | K12: 1.009334771 | L12: 0.995398545 | M12: 0.9735629515 | N12: =liborvol($C$3,$C$4+$C12,$C$5,$C$6,N$8,$C$2) -> 0.9458768076 | O12: 0.9140165125 | P12: 0.8793452795 | Q12: 0.8429635908 | R12: 0.805752119 | S12: 0.7684081896 | T12: 0.7314767088 | U12: 0.6953763554 | V12: 0.6604217216 | W12: 0.6268419928 | X12: =liborvol($C$3,$C$4+$C12,$C$5,$C$6,X$8,$C$2) -> 0.5947966758 | Y12: 0.5643888089 | Z12: 0.53567603 | AA12: 0.5086798239 | AB12: 0.4833932219 | AC12: 0.4597871925 | AD12: 0.4378159223 | AE12: 0.4174211606 | AF12: 0.3985357752 | AG12: 0.3810866431 | AH12: =liborvol($C$3,$C$4+$C12,$C$5,$C$6,AH$8,$C$2) -> 0.3649969861 | AI12: 0.3501882389 | AJ12: 0.3365815293 | AK12: 0.324098835 | AL12: 0.3126638731 | AM12: 0.3022027682 | AN12: 0.2926445401 | AO12: 0.2839214435 | AP12: 0.2759691875 | AQ12: 0.2687270594
B13: ="gamma2+"&C13 -> gamma2+0,05 | C13: 0.05 | D13: 0.5777556593 | E13: 0.6932816628 | F13: 0.7619775961 | G13: 0.7959023645 | H13: 0.8044499285 | I13: 0.7948941735 | J13: 0.7728275156 | K13: 0.7425133207 | L13: 0.7071685041 | M13: 0.6691896473 | N13: 0.6303334827 | O13: 0.5918605704 | P13: 0.5546493341 | Q13: 0.51928627 | R13: 0.4861370403 | S13: 0.455402263 | T13: 0.4271610813 | U13: 0.4014049963 | V13: 0.3780639678 | W13: 0.3570263938 | X13: 0.3381542601 | Y13: 0.3212944977 | Z13: 0.3062873737 | AA13: 0.2929725763 | AB13: 0.2811935175 | AC13: 0.2708002694 | AD13: 0.2616514617 | AE13: 0.2536153981 | AF13: 0.246570594 | AG13: 0.2404058917 | AH13: 0.235020276 | AI13: 0.2303224825 | AJ13: 0.2262304702 | AK13: 0.2226708125 | AL13: 0.2195780455 | AM13: 0.2168940039 | AN13: 0.214567165 | AO13: 0.2125520144 | AP13: 0.2108084456 | AQ13: 0.209301196
B14: ="gamma3"&C14 -> gamma3-0,05 | C14: -0.05 | D14: =liborvol($C$3,$C$4,$C$5+$C14,$C$6,D$8,$C$2) -> 0.5373185894 | E14: 0.6685727545 | F14: 0.755746744 | G14: 0.8085739633 | H14: 0.8349315015 | I14: 0.8411684216 | J14: 0.8323786108 | K14: 0.8126272662 | L14: 0.7851386386 | M14: 0.7524514324 | N14: =liborvol($C$3,$C$4,$C$5+$C14,$C$6,N$8,$C$2) -> 0.7165472304 | O14: 0.6789564423 | P14: 0.640845547 | Q14: 0.6030887845 | R14: 0.566326937 | S14: 0.5310154038 | T14: 0.4974634137 | U14: 0.4658659099 | V14: 0.4363293883 | W14: 0.4088927555 | X14: =liborvol($C$3,$C$4,$C$5+$C14,$C$6,X$8,$C$2) -> 0.3835440914 | Y14: 0.3602340542 | Z14: 0.3388865364 | AA14: 0.3194070792 | AB14: 0.3016894608 | AC14: 0.2856208067 | AD14: 0.2710855037 | AE14: 0.2579681531 | AF14: 0.2461557537 | AG14: 0.2355392733 | AH14: =liborvol($C$3,$C$4,$C$5+$C14,$C$6,AH$8,$C$2) -> 0.2260147353 | AI14: 0.2174839258 | AJ14: 0.2098548055 | AK14: 0.2030416951 | AL14: 0.1969652897 | AM14: 0.1915525447 | AN14: 0.186736471 | AO14: 0.1824558649 | AP14: 0.1786549966 | AQ14: 0.1752832722
B15: ="gamma3+"&C15 -> gamma3+0,05 | C15: 0.05 | D15: 0.6373185894 | E15: 0.7685727545 | F15: 0.855746744 | G15: 0.9085739633 | H15: 0.9349315015 | I15: 0.9411684216 | J15: 0.9323786108 | K15: 0.9126272662 | L15: 0.8851386386 | M15: 0.8524514324 | N15: 0.8165472304 | O15: 0.7789564423 | P15: 0.740845547 | Q15: 0.7030887845 | R15: 0.666326937 | S15: 0.6310154038 | T15: 0.5974634137 | U15: 0.5658659099 | V15: 0.5363293883 | W15: 0.5088927555 | X15: 0.4835440914 | Y15: 0.4602340542 | Z15: 0.4388865364 | AA15: 0.4194070792 | AB15: 0.4016894608 | AC15: 0.3856208067 | AD15: 0.3710855037 | AE15: 0.3579681531 | AF15: 0.3461557537 | AG15: 0.3355392733 | AH15: 0.3260147353 | AI15: 0.3174839258 | AJ15: 0.3098548055 | AK15: 0.3030416951 | AL15: 0.2969652897 | AM15: 0.2915525447 | AN15: 0.286736471 | AO15: 0.2824558649 | AP15: 0.2786549966 | AQ15: 0.2752832722
B16: ="gamma4"&C16 -> gamma4-0,1 | C16: -0.1 | D16: =liborvol($C$3,$C$4,$C$5,$C$6+$C16,D$8,$C$2) -> 0.5012477917 | E16: 0.6444909324 | F16: 0.7419839289 | G16: 0.8036927997 | H16: 0.8376948462 | I16: 0.8505114556 | J16: 0.8473848359 | K16: 0.832507845 | L16: 0.8092146125 | M16: 0.7801384164 | N16: 0.7473422396 | O16: 0.7124265535 | P16: 0.6766181398 | Q16: 0.6408431417 | R16: 0.6057870146 | S16: 0.5719436085 | T16: 0.5396552471 | U16: 0.5091453586 | V16: 0.4805449562 | W16: 0.4539140487 | X16: 0.4292588787 | Y16: 0.4065457374 | Z16: 0.3857119728 | AA16: 0.3666747069 | AB16: 0.3493376862 | AC16: 0.3335966155 | AD16: 0.3193432663 | AE16: 0.3064685954 | AF16: 0.2948650725 | AG16: 0.2844283737 | AH16: 0.2750585752 | AI16: 0.2666609511 | AJ16: 0.2591464646 | AK16: 0.2524320205 | AL16: 0.2464405378 | AM16: 0.2411008866 | AN16: 0.2363477252 | AO16: 0.2321212684 | AP16: 0.2283670067 | AQ16: 0.225035397
B17: ="gamma4+"&C17 -> gamma4+0,1 | C17: 0.1 | D17: =liborvol($C$3,$C$4,$C$5,$C$6+$C$17,D$8,$C$2) -> 0.673389387 | E17: =liborvol($C$3,$C$4,$C$5,$C$6+$C$17,E$8,$C$2) -> 0.7926545765 | F17: 0.8695095592 | G17: 0.9134551269 | H17: 0.9321681567 | I17: 0.9318253875 | J17: 0.9173723857 | K17: 0.8927466874 | L17: 0.8610626646 | M17: 0.8247644484 | N17: 0.7857522213 | O17: 0.7454863311 | P17: 0.7050729541 | Q17: 0.6653344274 | R17: 0.6268668595 | S17: 0.5900871991 | T17: 0.5552715803 | U17: 0.5225864612 | V17: 0.4921138204 | W17: 0.4638714623 | X17: 0.4378293041 | Y17: 0.4139223709 | Z17: 0.3920611001 | AA17: 0.3721394514 | AB17: 0.3540412354 | AC17: 0.3376449978 | AD17: 0.3228277412 | AE17: 0.3094677108 | AF17: 0.297446435 | AG17: 0.286650173 | AH17: 0.2769708955 | AI17: 0.2683069005 | AJ17: 0.2605631463 | AK17: 0.2536513698 | AL17: 0.2474900415 | AM17: 0.2420042028 | AN17: 0.2371252167 | AO17: 0.2327904615 | AP17: 0.2289429865 | AQ17: 0.2255311474

Sheet Libor Corr
B1: Tenor | C1: 0.5
B2: beta | C2: 0.4
C5: 0.5 | D5: =C5+0.5 -> 1 | E5: =D5+0.5 -> 1.5 | F5: 2 | G5: 2.5 | H5: 3 | I5: 3.5 | J5: 4 | K5: 4.5 | L5: 5 | M5: 5.5 | N5: 6 | O5: 6.5 | P5: 7 | Q5: 7.5 | R5: 8 | S5: 8.5 | T5: 9 | U5: 9.5 | V5: 10
B6: 0.5 | C6: =liborcorr1($C$2,C$5,$B6) -> 1 | D6: =liborcorr1($C$2,D$5,$B6) -> 0.8187307531 | E6: 0.670320046 | F6: 0.5488116361 | G6: 0.4493289641 | H6: 0.3678794412 | I6: 0.3011942119 | J6: 0.2465969639 | K6: 0.201896518 | L6: 0.1652988882 | M6: 0.1353352832 | N6: 0.1108031584 | O6: 0.09071795329 | P6: 0.07427357821 | Q6: 0.06081006263 | R6: 0.04978706837 | S6: 0.04076220398 | T6: =liborcorr1($C$2,T$5,$B6) -> 0.03337326996 | U6: 0.02732372245 | V6: 0.02237077186
B7: =B6+$C$1 -> 1 | C7: =liborcorr1($C$2,C$5,$B7) -> 0.8187307531 | D7: 1 | E7: 0.8187307531 | F7: 0.670320046 | G7: 0.5488116361 | H7: 0.4493289641 | I7: 0.3678794412 | J7: 0.3011942119 | K7: 0.2465969639 | L7: 0.201896518 | M7: 0.1652988882 | N7: 0.1353352832 | O7: 0.1108031584 | P7: 0.09071795329 | Q7: 0.07427357821 | R7: 0.06081006263 | S7: 0.04978706837 | T7: 0.04076220398 | U7: 0.03337326996 | V7: 0.02732372245
B8: =B7+$C$1 -> 1.5 | C8: =liborcorr1($C$2,C$5,$B8) -> 0.670320046 | D8: 0.8187307531 | E8: 1 | F8: 0.8187307531 | G8: 0.670320046 | H8: 0.5488116361 | I8: 0.4493289641 | J8: 0.3678794412 | K8: 0.3011942119 | L8: 0.2465969639 | M8: 0.201896518 | N8: 0.1652988882 | O8: 0.1353352832 | P8: 0.1108031584 | Q8: 0.09071795329 | R8: 0.07427357821 | S8: 0.06081006263 | T8: 0.04978706837 | U8: 0.04076220398 | V8: 0.03337326996
B9: 2 | C9: 0.5488116361 | D9: 0.670320046 | E9: 0.8187307531 | F9: 1 | G9: 0.8187307531 | H9: 0.670320046 | I9: 0.5488116361 | J9: 0.4493289641 | K9: 0.3678794412 | L9: 0.3011942119 | M9: 0.2465969639 | N9: 0.201896518 | O9: 0.1652988882 | P9: 0.1353352832 | Q9: 0.1108031584 | R9: 0.09071795329 | S9: 0.07427357821 | T9: 0.06081006263 | U9: 0.04978706837 | V9: 0.04076220398
B10: 2.5 | C10: 0.4493289641 | D10: 0.5488116361 | E10: 0.670320046 | F10: 0.8187307531 | G10: 1 | H10: 0.8187307531 | I10: 0.670320046 | J10: 0.5488116361 | K10: 0.4493289641 | L10: 0.3678794412 | M10: 0.3011942119 | N10: 0.2465969639 | O10: 0.201896518 | P10: 0.1652988882 | Q10: 0.1353352832 | R10: 0.1108031584 | S10: 0.09071795329 | T10: 0.07427357821 | U10: 0.06081006263 | V10: 0.04978706837
B11: 3 | C11: 0.3678794412 | D11: 0.4493289641 | E11: 0.5488116361 | F11: 0.670320046 | G11: 0.8187307531 | H11: 1 | I11: 0.8187307531 | J11: 0.670320046 | K11: 0.5488116361 | L11: 0.4493289641 | M11: 0.3678794412 | N11: 0.3011942119 | O11: 0.2465969639 | P11: 0.201896518 | Q11: 0.1652988882 | R11: 0.1353352832 | S11: 0.1108031584 | T11: 0.09071795329 | U11: 0.07427357821 | V11: 0.06081006263
B12: 3.5 | C12: 0.3011942119 | D12: 0.3678794412 | E12: 0.4493289641 | F12: 0.5488116361 | G12: 0.670320046 | H12: 0.8187307531 | I12: 1 | J12: 0.8187307531 | K12: 0.670320046 | L12: 0.5488116361 | M12: 0.4493289641 | N12: 0.3678794412 | O12: 0.3011942119 | P12: 0.2465969639 | Q12: 0.201896518 | R12: 0.1652988882 | S12: 0.1353352832 | T12: 0.1108031584 | U12: 0.09071795329 | V12: 0.07427357821
B13: 4 | C13: 0.2465969639 | D13: 0.3011942119 | E13: 0.3678794412 | F13: 0.4493289641 | G13: 0.5488116361 | H13: 0.670320046 | I13: 0.8187307531 | J13: 1 | K13: 0.8187307531 | L13: 0.670320046 | M13: 0.5488116361 | N13: 0.4493289641 | O13: 0.3678794412 | P13: 0.3011942119 | Q13: 0.2465969639 | R13: 0.201896518 | S13: 0.1652988882 | T13: 0.1353352832 | U13: 0.1108031584 | V13: 0.09071795329
B14: 4.5 | C14: 0.201896518 | D14: 0.2465969639 | E14: 0.3011942119 | F14: 0.3678794412 | G14: 0.4493289641 | H14: 0.5488116361 | I14: 0.670320046 | J14: 0.8187307531 | K14: 1 | L14: 0.8187307531 | M14: 0.670320046 | N14: 0.5488116361 | O14: 0.4493289641 | P14: 0.3678794412 | Q14: 0.3011942119 | R14: 0.2465969639 | S14: 0.201896518 | T14: 0.1652988882 | U14: 0.1353352832 | V14: 0.1108031584
B15: 5 | C15: 0.1652988882 | D15: 0.201896518 | E15: 0.2465969639 | F15: 0.3011942119 | G15: 0.3678794412 | H15: 0.4493289641 | I15: 0.5488116361 | J15: 0.670320046 | K15: 0.8187307531 | L15: 1 | M15: 0.8187307531 | N15: 0.670320046 | O15: 0.5488116361 | P15: 0.4493289641 | Q15: 0.3678794412 | R15: 0.3011942119 | S15: 0.2465969639 | T15: 0.201896518 | U15: 0.1652988882 | V15: 0.1353352832
B16: 5.5 | C16: 0.1353352832 | D16: 0.1652988882 | E16: 0.201896518 | F16: 0.2465969639 | G16: 0.3011942119 | H16: 0.3678794412 | I16: 0.4493289641 | J16: 0.5488116361 | K16: 0.670320046 | L16: 0.8187307531 | M16: 1 | N16: 0.8187307531 | O16: 0.670320046 | P16: 0.5488116361 | Q16: 0.4493289641 | R16: 0.3678794412 | S16: 0.3011942119 | T16: 0.2465969639 | U16: 0.201896518 | V16: 0.1652988882
B17: 6 | C17: 0.1108031584 | D17: 0.1353352832 | E17: 0.1652988882 | F17: 0.201896518 | G17: 0.2465969639 | H17: 0.3011942119 | I17: 0.3678794412 | J17: 0.4493289641 | K17: 0.5488116361 | L17: 0.670320046 | M17: 0.8187307531 | N17: 1 | O17: 0.8187307531 | P17: 0.670320046 | Q17: 0.5488116361 | R17: 0.4493289641 | S17: 0.3678794412 | T17: 0.3011942119 | U17: 0.2465969639 | V17: 0.201896518
B18: 6.5 | C18: 0.09071795329 | D18: 0.1108031584 | E18: 0.1353352832 | F18: 0.1652988882 | G18: 0.201896518 | H18: 0.2465969639 | I18: 0.3011942119 | J18: 0.3678794412 | K18: 0.4493289641 | L18: 0.5488116361 | M18: 0.670320046 | N18: 0.8187307531 | O18: 1 | P18: 0.8187307531 | Q18: 0.670320046 | R18: 0.5488116361 | S18: 0.4493289641 | T18: 0.3678794412 | U18: 0.3011942119 | V18: 0.2465969639
B19: 7 | C19: 0.07427357821 | D19: 0.09071795329 | E19: 0.1108031584 | F19: 0.1353352832 | G19: 0.1652988882 | H19: 0.201896518 | I19: 0.2465969639 | J19: 0.3011942119 | K19: 0.3678794412 | L19: 0.4493289641 | M19: 0.5488116361 | N19: 0.670320046 | O19: 0.8187307531 | P19: 1 | Q19: 0.8187307531 | R19: 0.670320046 | S19: 0.5488116361 | T19: 0.4493289641 | U19: 0.3678794412 | V19: 0.3011942119
B20: 7.5 | C20: 0.06081006263 | D20: 0.07427357821 | E20: 0.09071795329 | F20: 0.1108031584 | G20: 0.1353352832 | H20: 0.1652988882 | I20: 0.201896518 | J20: 0.2465969639 | K20: 0.3011942119 | L20: 0.3678794412 | M20: 0.4493289641 | N20: 0.5488116361 | O20: 0.670320046 | P20: 0.8187307531 | Q20: 1 | R20: 0.8187307531 | S20: 0.670320046 | T20: 0.5488116361 | U20: 0.4493289641 | V20: 0.3678794412
B21: 8 | C21: 0.04978706837 | D21: 0.06081006263 | E21: 0.07427357821 | F21: 0.09071795329 | G21: 0.1108031584 | H21: 0.1353352832 | I21: 0.1652988882 | J21: 0.201896518 | K21: 0.2465969639 | L21: 0.3011942119 | M21: 0.3678794412 | N21: 0.4493289641 | O21: 0.5488116361 | P21: 0.670320046 | Q21: 0.8187307531 | R21: 1 | S21: 0.8187307531 | T21: 0.670320046 | U21: 0.5488116361 | V21: 0.4493289641
B22: 8.5 | C22: 0.04076220398 | D22: 0.04978706837 | E22: 0.06081006263 | F22: 0.07427357821 | G22: 0.09071795329 | H22: 0.1108031584 | I22: 0.1353352832 | J22: 0.1652988882 | K22: 0.201896518 | L22: 0.2465969639 | M22: 0.3011942119 | N22: 0.3678794412 | O22: 0.4493289641 | P22: 0.5488116361 | Q22: 0.670320046 | R22: 0.8187307531 | S22: =liborcorr1($C$2,S$5,$B22) -> 1 | T22: 0.8187307531 | U22: 0.670320046 | V22: 0.5488116361
B23: 9 | C23: 0.03337326996 | D23: 0.04076220398 | E23: 0.04978706837 | F23: 0.06081006263 | G23: 0.07427357821 | H23: 0.09071795329 | I23: 0.1108031584 | J23: 0.1353352832 | K23: 0.1652988882 | L23: 0.201896518 | M23: 0.2465969639 | N23: 0.3011942119 | O23: 0.3678794412 | P23: 0.4493289641 | Q23: 0.5488116361 | R23: 0.670320046 | S23: 0.8187307531 | T23: 1 | U23: 0.8187307531 | V23: 0.670320046
B24: 9.5 | C24: =liborcorr1($C$2,C$5,$B24) -> 0.02732372245 | D24: 0.03337326996 | E24: 0.04076220398 | F24: 0.04978706837 | G24: 0.06081006263 | H24: 0.07427357821 | I24: 0.09071795329 | J24: 0.1108031584 | K24: 0.1353352832 | L24: 0.1652988882 | M24: 0.201896518 | N24: 0.2465969639 | O24: 0.3011942119 | P24: 0.3678794412 | Q24: 0.4493289641 | R24: 0.5488116361 | S24: 0.670320046 | T24: 0.8187307531 | U24: 1 | V24: 0.8187307531
B25: 10 | C25: 0.02237077186 | D25: 0.02732372245 | E25: 0.03337326996 | F25: 0.04076220398 | G25: 0.04978706837 | H25: 0.06081006263 | I25: 0.07427357821 | J25: 0.09071795329 | K25: 0.1108031584 | L25: 0.1353352832 | M25: 0.1652988882 | N25: 0.201896518 | O25: 0.2465969639 | P25: 0.3011942119 | Q25: 0.3678794412 | R25: 0.4493289641 | S25: 0.5488116361 | T25: 0.670320046 | U25: 0.8187307531 | V25: 1
B52: Tenor | C52: 0.5 | E52: Tmax | F52: 10 | H52: 1 | I52: 2 | J52: 3 | K52: 4 | L52: 5 | M52: 6 | N52: 7 | O52: 8 | P52: 9
B53: beta1 | C53: 0.2 | H53: 0.2 | I53: 0.2 | J53: 0.2 | K53: 0.2 | L53: 0.2 | M53: 0.2 | N53: 0.2 | O53: 0.2 | P53: 0.2
B54: beta2 | C54: 1 | H54: 1 | I54: 1 | J54: 3 | K54: 1 | L54: 1 | M54: 1.5 | N54: 2.2 | O54: 0.5 | P54: 1
B55: beta3 | C55: 0.06 | H55: 0.1 | I55: 0.1 | J55: 0.01 | K55: 0.1 | L55: 0.1 | M55: 0.1 | N55: 0.006 | O55: 0.8 | P55: 0.06
B56: beta4 | C56: -7 | H56: -3.7 | I56: 0 | J56: -5.6 | K56: 10 | L56: -1.7 | M56: -3.4 | N56: 0.95 | O56: 3 | P56: -7
B57: beta5 | C57: 2 | H57: -0.3 | I57: 0 | J57: 1 | K57: 4.5 | L57: 3.7 | M57: 8.3 | N57: 3.6 | O57: -0.2 | P57: 2
C59: 1 | D59: =C59+1 -> 2 | E59: =D59+1 -> 3 | F59: 4 | G59: 5 | H59: 6 | I59: 7 | J59: 8 | K59: 9 | L59: 10 | M59: 11 | N59: 12 | O59: 13 | P59: 14 | Q59: =P59+1 -> 15 | R59: 16 | S59: 17 | T59: 18 | U59: 19 | V59: 20
C60: 0.5 | D60: =C60+$C$52 -> 1 | E60: 1.5 | F60: 2 | G60: 2.5 | H60: 3 | I60: 3.5 | J60: 4 | K60: 4.5 | L60: 5 | M60: 5.5 | N60: 6 | O60: 6.5 | P60: 7 | Q60: 7.5 | R60: 8 | S60: 8.5 | T60: 9 | U60: 9.5 | V60: 10
A61: 1 | B61: 0.5 | C61: =liborcorr2($C$53,$C$54,$C$55,$C$56,$C$57,C$59,$A61,$F$52/$C$52) -> 1 | D61: 0.9805769027 | E61: 0.9402638787 | F61: 0.8909107371 | G61: 0.8389530862 | H61: 0.7882511925 | I61: 0.7411662907 | J61: 0.6988282008 | K61: 0.6613881234 | L61: 0.6283994329 | M61: =liborcorr2($C$53,$C$54,$C$55,$C$56,$C$57,M$59,$A61,$F$52/$C$52) -> 0.5991794877 | N61: 0.5730430383 | O61: 0.5494072584 | P61: 0.5278159462 | Q61: 0.5079265434 | R61: 0.4894858584 | S61: 0.4723063109 | T61: 0.4562466969 | U61: 0.4411979576 | V61: 0.4270731722
A62: =A61+1 -> 2 | B62: =B61+$C$1 -> 1 | C62: 0.9805769027 | D62: 1 | E62: 0.9771222558 | F62: 0.9310541242 | G62: 0.8734231484 | H62: 0.8127246153 | I62: 0.7547338059 | J62: 0.7026690305 | K62: 0.6575948535 | L62: 0.6191698771 | M62: 0.5864045003 | N62: 0.5581783139 | O62: 0.5334955182 | P62: 0.5115657682 | Q62: 0.4917985522 | R62: 0.4737663612 | S62: 0.4571635502 | T62: 0.4417711853 | U62: 0.4274302562 | V62: 0.4140224946
A63: =A62+1 -> 3 | B63: =B62+$C$1 -> 1.5 | C63: 0.9402638787 | D63: 0.9771222558 | E63: 1 | F63: 0.9705561151 | G63: 0.91606595 | H63: 0.8493949938 | I63: 0.7810881466 | J63: 0.7179940556 | K63: 0.6632619879 | L63: 0.6173485898 | M63: 0.5792736303 | N63: 0.5475693917 | O63: 0.520803223 | P63: 0.4977858983 | Q63: 0.4776090612 | R63: 0.4596104816 | S63: 0.4433194162 | T63: 0.42840473 | U63: 0.4146331652 | V63: 0.4018384362
A64: 4 | B64: 2 | C64: 0.8909107371 | D64: 0.9310541242 | E64: 0.9705561151 | F64: 1 | G64: 0.960114619 | H64: 0.8948743262 | I64: 0.819420125 | J64: 0.7454763998 | K64: 0.6796790696 | L64: 0.6243142006 | M64: 0.5789988281 | N64: 0.5421755278 | O64: 0.5120390675 | P64: 0.4869732286 | Q64: 0.4656908043 | R64: 0.4472306215 | S64: 0.430901558 | T64: 0.4162171308 | U64: 0.402838059 | V64: 0.3905275155
A65: 5 | B65: 2.5 | C65: 0.8389530862 | D65: 0.8734231484 | E65: 0.91606595 | F65: 0.960114619 | G65: 1 | H65: 0.9461676843 | I65: 0.8692702349 | J65: 0.7863072028 | K65: 0.7087764326 | L65: 0.6421047476 | M65: 0.5873904215 | N65: 0.543454351 | O65: 0.5083024844 | P65: 0.4799178335 | Q65: 0.4565894302 | R65: 0.4369900581 | S65: 0.4201425942 | T65: 0.4053502565 | U65: 0.3921253633 | V65: 0.3801294957
A66: 6 | B66: 3 | C66: 0.7882511925 | D66: 0.8127246153 | E66: 0.8493949938 | F66: 0.8948743262 | G66: 0.9461676843 | H66: 1 | I66: 0.9297277934 | J66: 0.8414829716 | K66: 0.7525951443 | L66: 0.6730710994 | M66: 0.606653958 | N66: 0.5532556406 | O66: 0.5110362742 | P66: 0.4776879876 | Q66: 0.4510644058 | R66: 0.4294103182 | S66: 0.4113890654 | T66: 0.3960263305 | U66: 0.382631359 | V66: 0.3707225952
A67: 7 | B67: 3.5 | C67: 0.7411662907 | D67: 0.7547338059 | E67: 0.7810881466 | F67: 0.819420125 | G67: 0.8692702349 | H67: 0.9297277934 | I67: 1 | J67: 0.9121057481 | K67: 0.8134618612 | L67: 0.7200064212 | M67: 0.6395044235 | N67: 0.5739258845 | O67: 0.522119214 | P67: 0.4817082106 | Q67: 0.4501517474 | R67: 0.4252196041 | S67: 0.4051375861 | T67: 0.3885741816 | U67: 0.3745668087 | V67: 0.3624364498
A68: 8 | B68: 4 | C68: 0.6988282008 | D68: 0.7026690305 | E68: 0.7179940556 | F68: 0.7454763998 | G68: 0.7863072028 | H68: 0.8414829716 | I68: 0.9121057481 | J68: 1 | K68: 0.8944801761 | L68: 0.7865489853 | M68: 0.6895005372 | N68: 0.60858285 | O68: 0.544086292 | P68: 0.4939309995 | Q68: 0.4552942436 | R68: 0.4254490513 | S68: 0.4021044076 | T68: 0.3834785374 | U68: 0.3682512956 | V68: 0.3554756788
A69: 9 | B69: 4.5 | C69: 0.6613881234 | D69: 0.6575948535 | E69: 0.6632619879 | F69: 0.6796790696 | G69: 0.7087764326 | H69: 0.7525951443 | I69: 0.8134618612 | J69: 0.8944801761 | K69: 1 | L69: 0.8776521373 | M69: 0.7614835368 | N69: 0.6615014298 | O69: 0.5804509297 | P69: 0.5170944165 | Q69: 0.4685399858 | R69: 0.431581146 | S69: 0.4033335794 | T69: 0.3814571759 | U69: 0.3641672637 | V69: 0.350157154
A70: 10 | B70: 5 | C70: 0.6283994329 | D70: 0.6191698771 | E70: 0.6173485898 | F70: 0.6243142006 | G70: 0.6421047476 | H70: 0.6730710994 | I70: 0.7200064212 | J70: 0.7865489853 | K70: 0.8776521373 | L70: 1 | M70: 0.8620380611 | N70: 0.7385618095 | O70: 0.6361041514 | P70: 0.5550555983 | Q70: 0.4928077643 | R70: 0.4457529935 | S70: 0.4103479291 | T70: 0.3835702927 | U70: 0.3630376145 | V70: 0.3469641027
A71: 11 | B71: 5.5 | C71: =liborcorr2($C$53,$C$54,$C$55,$C$56,$C$57,C$59,$A71,$F$52/$C$52) -> 0.5991794877 | D71: 0.5864045003 | E71: 0.5792736303 | F71: 0.5789988281 | G71: 0.5873904215 | H71: 0.606653958 | I71: 0.6395044235 | J71: 0.6895005372 | K71: 0.7614835368 | L71: 0.8620380611 | M71: =liborcorr2($C$53,$C$54,$C$55,$C$56,$C$57,M$59,$A71,$F$52/$C$52) -> 1 | N71: 0.8477811882 | O71: 0.7178117222 | P71: 0.6132207758 | Q71: 0.5322383641 | R71: 0.4710310051 | S71: 0.4253565552 | T71: 0.3913729345 | U71: 0.3659351635 | V71: 0.3466232242
A72: 12 | B72: 6 | C72: 0.5730430383 | D72: 0.5581783139 | E72: 0.5475693917 | F72: 0.5421755278 | G72: 0.543454351 | H72: 0.5532556406 | I72: 0.5739258845 | J72: 0.60858285 | K72: 0.6615014298 | L72: 0.7385618095 | M72: 0.8477811882 | N72: 1 | O72: 0.8348700908 | P72: 0.6991233957 | Q72: 0.5926744235 | R72: 0.5117912595 | S72: 0.4515455562 | T72: 0.4071307999 | U72: 0.3744390197 | V72: 0.3502157671
A73: 13 | B73: 6.5 | C73: 0.5494072584 | D73: 0.5334955182 | E73: 0.520803223 | F73: 0.5120390675 | G73: 0.5083024844 | H73: 0.5110362742 | I73: 0.522119214 | J73: 0.544086292 | K73: 0.5804509297 | L73: 0.6361041514 | M73: 0.7178117222 | N73: 0.8348700908 | O73: 1 | P73: 0.8232210156 | Q73: 0.682329281 | R73: 0.5742551019 | S73: 0.4934912182 | T73: 0.4341295131 | U73: 0.3908604069 | V73: 0.3593390423
A74: 14 | B74: 7 | C74: 0.5278159462 | D74: 0.5115657682 | E74: 0.4977858983 | F74: 0.4869732286 | G74: 0.4799178335 | H74: 0.4776879876 | I74: 0.4817082106 | J74: 0.4939309995 | K74: 0.5170944165 | L74: 0.5550555983 | M74: 0.6132207758 | N74: 0.6991233957 | O74: 0.8232210156 | P74: 1 | Q74: 0.8127240723 | R74: 0.667246869 | S74: 0.5577497263 | T74: 0.4771195573 | U74: 0.4185698921 | V74: 0.3763420098
A75: 15 | B75: 7.5 | C75: 0.5079265434 | D75: 0.4917985522 | E75: 0.4776090612 | F75: 0.4656908043 | G75: 0.4565894302 | H75: 0.4510644058 | I75: 0.4501517474 | J75: 0.4552942436 | K75: 0.4685399858 | L75: 0.4928077643 | M75: 0.5322383641 | N75: 0.5926744235 | O75: 0.682329281 | P75: 0.8127240723 | Q75: 1 | R75: 0.8032656754 | S75: 0.65369882 | T75: 0.542956436 | U75: 0.4624716314 | V75: 0.4046689643
A76: 16 | B76: 8 | C76: 0.4894858584 | D76: 0.4737663612 | E76: 0.4596104816 | F76: 0.4472306215 | G76: 0.4369900581 | H76: 0.4294103182 | I76: 0.4252196041 | J76: 0.4254490513 | K76: 0.431581146 | L76: 0.4457529935 | M76: 0.4710310051 | N76: 0.5117912595 | O76: 0.5742551019 | P76: 0.667246869 | Q76: 0.8032656754 | R76: 1 | S76: 0.7947381227 | T76: 0.6415211415 | U76: 0.5296903013 | V76: 0.4493606677
A77: 17 | B77: 8.5 | C77: 0.4723063109 | D77: 0.4571635502 | E77: 0.4433194162 | F77: 0.430901558 | G77: 0.4201425942 | H77: 0.4113890654 | I77: 0.4051375861 | J77: 0.4021044076 | K77: 0.4033335794 | L77: 0.4103479291 | M77: 0.4253565552 | N77: 0.4515455562 | O77: 0.4934912182 | P77: 0.5577497263 | Q77: 0.65369882 | R77: 0.7947381227 | S77: 1 | T77: 0.7870429801 | U77: 0.6305656215 | V77: 0.5177847251
A78: 18 | B78: 9 | C78: 0.4562466969 | D78: 0.4417711853 | E78: 0.42840473 | F78: 0.4162171308 | G78: 0.4053502565 | H78: 0.3960263305 | I78: 0.3885741816 | J78: 0.3834785374 | K78: 0.3814571759 | L78: 0.3835702927 | M78: 0.3913729345 | N78: 0.4071307999 | O78: 0.4341295131 | P78: 0.4771195573 | Q78: 0.542956436 | R78: 0.6415211415 | S78: 0.7870429801 | T78: 1 | U78: 0.7800917376 | V78: 0.6206997309
A79: 19 | B79: 9.5 | C79: 0.4411979576 | D79: 0.4274302562 | E79: 0.4146331652 | F79: 0.402838059 | G79: 0.3921253633 | H79: 0.382631359 | I79: 0.3745668087 | J79: 0.3682512956 | K79: 0.3641672637 | L79: 0.3630376145 | M79: 0.3659351635 | N79: 0.3744390197 | O79: 0.3908604069 | P79: 0.4185698921 | Q79: 0.4624716314 | R79: 0.5296903013 | S79: 0.6305656215 | T79: 0.7800917376 | U79: 1 | V79: 0.7738053683
A80: 20 | B80: 10 | C80: 0.4270731722 | D80: 0.4140224946 | E80: 0.4018384362 | F80: 0.3905275155 | G80: 0.3801294957 | H80: 0.3707225952 | I80: 0.3624364498 | J80: 0.3554756788 | K80: 0.350157154 | L80: 0.3469641027 | M80: 0.3466232242 | N80: 0.3502157671 | O80: 0.3593390423 | P80: 0.3763420098 | Q80: 0.4046689643 | R80: 0.4493606677 | S80: 0.5177847251 | T80: 0.6206997309 | U80: 0.7738053683 | V80: 1
B84: Tenor | C84: 0.5 | E84: Tmax | F84: 10
B85: beta1 | C85: 0.3 | E85: =3*C85-C86 -> 0.4 | F85: >0? | G85: 0.2 | H85: 0 | I85: 1 | J85: 0.3 | K85: 0.3 | L85: 0.3 | M85: 0.3
B86: beta2 | C86: 0.5 | E86: =-LN(C87) -> 0.8209805521 | F86: =C85+C86 -> 0.8 | G86: 0.5 | H86: 0.5 | I86: 0.5 | J86: 0 | K86: 1 | L86: 0.5 | M86: 0.5
B87: beta3 | C87: 0.44 | G87: 0.3 | H87: 0.3 | I87: 0.3 | J87: 0.3 | K87: 0.3 | L87: 0.05 | M87: 0.44
C89: 1 | D89: =C89+1 -> 2 | E89: =D89+1 -> 3 | F89: 4 | G89: 5 | H89: 6 | I89: 7 | J89: 8 | K89: 9 | L89: 10 | M89: 11 | N89: 12 | O89: 13 | P89: 14 | Q89: 15 | R89: 16 | S89: 17 | T89: 18 | U89: 19 | V89: 20
C90: 0.5 | D90: =C90+$C$84 -> 1 | E90: 1.5 | F90: 2 | G90: 2.5 | H90: 3 | I90: 3.5 | J90: 4 | K90: 4.5 | L90: 5 | M90: 5.5 | N90: 6 | O90: 6.5 | P90: 7 | Q90: 7.5 | R90: 8 | S90: 8.5 | T90: 9 | U90: 9.5 | V90: 10
A91: 1 | B91: 0.5 | C91: =liborcorr3($C$85,$C$86,$C$87,C$89,$A91,$F$84/$C$84) -> 1 | D91: 0.9279397711 | E91: 0.8630887805 | F91: 0.8048161537 | G91: 0.7525460266 | H91: 0.705755475 | I91: 0.663972189 | J91: 0.6267720246 | K91: 0.593776545 | L91: 0.5646506468 | M91: =liborcorr3($C$85,$C$86,$C$87,M$89,$A91,$F$84/$C$84) -> 0.5391003532 | N91: 0.5168708445 | O91: 0.4977447918 | P91: 0.4815410566 | Q91: 0.4681138209 | R91: 0.4573522177 | S91: 0.4491805429 | T91: 0.443559148 | U91: 0.4404861338 | V91: 0.44
A92: =A91+1 -> 2 | B92: =B91+$C$1 -> 1 | C92: 0.9279397711 | D92: 1 | E92: 0.9301129312 | F92: 0.8673150767 | G92: 0.8109858528 | H92: 0.7605617271 | I92: 0.7155337121 | J92: 0.6754447262 | K92: 0.6398869447 | L92: 0.6084992414 | M92: 0.5809648104 | N92: 0.5570090437 | O92: 0.5363977353 | P92: 0.5189356805 | Q92: 0.5044657374 | R92: 0.4928684296 | S92: 0.484062174 | T92: 0.4780042432 | U92: 0.4746925905 | V92: 0.4741687054
A93: =A92+1 -> 3 | B93: =B92+$C$1 -> 1.5 | C93: 0.8630887805 | D93: 0.9301129312 | E93: 1 | F93: 0.9324836238 | G93: 0.87192192 | H93: 0.8177090132 | I93: 0.7692976714 | J93: 0.7261964688 | K93: 0.6879669373 | L93: 0.6542208166 | M93: 0.6246174964 | N93: 0.598861735 | O93: 0.5767017287 | P93: 0.5579276054 | Q93: 0.542370416 | R93: 0.5299017066 | S93: 0.5204337643 | T93: 0.5139206511 | U93: 0.5103601666 | V93: 0.5097969177
A94: 4 | B94: 2 | C94: 0.8048161537 | D94: 0.8673150767 | E94: 0.9324836238 | F94: 1 | G94: 0.9350533325 | H94: 0.8769151461 | I94: 0.8249985863 | J94: 0.7787766457 | K94: 0.7377791092 | L94: 0.7015896042 | M94: 0.6698428588 | N94: 0.6422222543 | O94: 0.6184577552 | P94: 0.5983242935 | Q94: 0.5816406875 | R94: 0.5682691825 | S94: 0.5581157148 | T94: 0.5511310204 | U94: 0.5473127394 | V94: 0.5467087085
A95: 5 | B95: 2.5 | C95: 0.7525460266 | D95: 0.8109858528 | E95: 0.87192192 | F95: 0.9350533325 | G95: 1 | H95: 0.937823668 | I95: 0.8823011026 | J95: 0.8328686917 | K95: 0.78902356 | L95: 0.7503204147 | M95: 0.7163686129 | N95: 0.6868295443 | O95: 0.6614144174 | P95: 0.6398825315 | Q95: 0.6220401203 | R95: 0.6077398612 | S95: 0.5968811568 | T95: 0.5894113215 | U95: 0.5853278314 | V95: 0.584681846
A96: 6 | B96: 3 | C96: 0.705755475 | D96: 0.7605617271 | E96: 0.8177090132 | F96: 0.8769151461 | G96: 0.937823668 | H96: 1 | I96: 0.9407963701 | J96: 0.8880866629 | K96: 0.8413346634 | L96: 0.8000655564 | M96: 0.7638628 | N96: 0.7323653345 | O96: 0.705265222 | P96: 0.6823058037 | Q96: 0.6632804669 | R96: 0.6480321215 | S96: 0.636453501 | T96: 0.6284884266 | U96: 0.6241342071 | V96: 0.6234453938
A97: 7 | B97: 3.5 | C97: 0.663972189 | D97: 0.7155337121 | E97: 0.7692976714 | F97: 0.8249985863 | G97: 0.8823011026 | H97: 0.9407963701 | I97: 1 | J97: 0.9439733094 | K97: 0.8942792406 | L97: 0.8504130988 | M97: 0.8119321293 | N97: 0.7784525513 | O97: 0.7496470485 | P97: 0.7252428107 | Q97: 0.7050202233 | R97: 0.6888123106 | S97: 0.676505056 | T97: 0.6680387452 | U97: 0.6634105179 | V97: 0.662678358
A98: 8 | B98: 4 | C98: 0.6267720246 | D98: 0.6754447262 | E98: 0.7261964688 | F98: 0.7787766457 | G98: 0.8328686917 | H98: 0.8880866629 | I98: 0.9439733094 | J98: 1 | K98: 0.9473564895 | L98: 0.9008868051 | M98: 0.8601219136 | N98: 0.8246552561 | O98: 0.7941400895 | P98: 0.7682874118 | Q98: 0.7468645736 | R98: 0.7296946892 | S98: 0.7166569746 | T98: 0.7076881714 | U98: 0.7027852496 | V98: 0.7020096346
A99: 9 | B99: 4.5 | C99: 0.593776545 | D99: 0.6398869447 | E99: 0.6879669373 | F99: 0.7377791092 | G99: 0.78902356 | H99: 0.8413346634 | I99: 0.8942792406 | J99: 0.9473564895 | K99: 1 | L99: 0.9509480487 | M99: 0.907917899 | N99: 0.8704804002 | O99: 0.8382695409 | P99: 0.8109802596 | Q99: 0.788366979 | R99: 0.7702429838 | S99: 0.7564807784 | T99: 0.7470135892 | U99: 0.7418382176 | V99: 0.7410195026
A100: 10 | B100: 5 | C100: 0.5646506468 | D100: 0.6084992414 | E100: 0.6542208166 | F100: 0.7015896042 | G100: 0.7503204147 | H100: 0.8000655564 | I100: 0.8504130988 | J100: 0.9008868051 | K100: 0.9509480487 | L100: 1 | M100: 0.9547502625 | N100: 0.9153816567 | O100: 0.8815092918 | P100: 0.8528123705 | Q100: 0.8290326481 | R100: 0.8099737782 | S100: 0.7955016885 | T100: 0.7855461612 | U100: 0.7801038328 | V100: 0.7792428867
A101: 11 | B101: 5.5 | C101: =liborcorr3($C$85,$C$86,$C$87,C$89,$A101,$F$84/$C$84) -> 0.5391003532 | D101: 0.5809648104 | E101: 0.6246174964 | F101: 0.6698428588 | G101: 0.7163686129 | H101: 0.7638628 | I101: 0.8119321293 | J101: 0.8601219136 | K101: 0.907917899 | L101: 0.9547502625 | M101: =liborcorr3($C$85,$C$86,$C$87,M$89,$A101,$F$84/$C$84) -> 1 | N101: 0.958765546 | O101: 0.9232878235 | P101: 0.8932308312 | Q101: 0.868324085 | R101: 0.848361933 | S101: 0.8332039485 | T101: 0.8227765858 | U101: 0.817076322 | V101: 0.8161745719
A102: 12 | B102: 6 | C102: 0.5168708445 | D102: 0.5570090437 | E102: 0.598861735 | F102: 0.6422222543 | G102: 0.6868295443 | H102: 0.7323653345 | I102: 0.7784525513 | J102: 0.8246552561 | K102: 0.8704804002 | L102: 0.9153816567 | M102: 0.958765546 | N102: 1 | O102: 0.9629964566 | P102: 0.9316467773 | Q102: 0.9056688454 | R102: 0.8848481639 | S102: 0.8690382669 | T102: 0.8581624457 | U102: 0.8522170257 | V102: 0.8512764933
A103: 13 | B103: 6.5 | C103: 0.4977447918 | D103: 0.5363977353 | E103: 0.5767017287 | F103: 0.6184577552 | G103: 0.6614144174 | H103: 0.705265222 | I103: 0.7496470485 | J103: 0.7941400895 | K103: 0.8382695409 | L103: 0.8815092918 | M103: 0.9232878235 | N103: 0.9629964566 | O103: 1 | P103: 0.9674456962 | Q103: 0.9404695513 | R103: 0.9188488263 | S103: 0.9024314274 | T103: 0.8911376982 | U103: 0.884963823 | V103: 0.8839871502
A104: 14 | B104: 7 | C104: 0.4815410566 | D104: 0.5189356805 | E104: 0.5579276054 | F104: 0.5983242935 | G104: 0.6398825315 | H104: 0.6823058037 | I104: 0.7252428107 | J104: 0.7682874118 | K104: 0.8109802596 | L104: 0.8528123705 | M104: 0.8932308312 | N104: 0.9316467773 | O104: 0.9674456962 | P104: 1 | Q104: 0.9721161146 | R104: 0.9497678577 | S104: 0.9327980175 | T104: 0.9211242571 | U104: 0.9147426325 | V104: 0.913733095
A105: 15 | B105: 7.5 | C105: 0.4681138209 | D105: 0.5044657374 | E105: 0.542370416 | F105: 0.5816406875 | G105: 0.6220401203 | H105: 0.6632804669 | I105: 0.7050202233 | J105: 0.7468645736 | K105: 0.788366979 | L105: 0.8290326481 | M105: 0.868324085 | N105: 0.9056688454 | O105: 0.9404695513 | P105: 0.9721161146 | Q105: 1 | R105: 0.9770107125 | S105: 0.9595541144 | T105: 0.9475455075 | U105: 0.9409808343 | V105: 0.9399423395
A106: 16 | B106: 8 | C106: 0.4573522177 | D106: 0.4928684296 | E106: 0.5299017066 | F106: 0.5682691825 | G106: 0.6077398612 | H106: 0.6480321215 | I106: 0.6888123106 | J106: 0.7296946892 | K106: 0.7702429838 | L106: 0.8099737782 | M106: 0.848361933 | N106: 0.8848481639 | O106: 0.9188488263 | P106: 0.9497678577 | Q106: 0.9770107125 | R106: 1 | S106: 0.9821326442 | T106: 0.9698414719 | U106: 0.9631223305 | V106: 0.9620593996
A107: 17 | B107: 8.5 | C107: 0.4491805429 | D107: 0.484062174 | E107: 0.5204337643 | F107: 0.5581157148 | G107: 0.5968811568 | H107: 0.636453501 | I107: 0.676505056 | J107: 0.7166569746 | K107: 0.7564807784 | L107: 0.7955016885 | M107: 0.8332039485 | N107: 0.8690382669 | O107: 0.9024314274 | P107: 0.9327980175 | Q107: 0.9595541144 | R107: 0.9821326442 | S107: 1 | T107: 0.9874852217 | U107: 0.9806438429 | V107: 0.9795615748
A108: 18 | B108: 9 | C108: 0.443559148 | D108: 0.4780042432 | E108: 0.5139206511 | F108: 0.5511310204 | G108: 0.5894113215 | H108: 0.6284884266 | I108: 0.6680387452 | J108: 0.7076881714 | K108: 0.7470135892 | L108: 0.7855461612 | M108: 0.8227765858 | N108: 0.8581624457 | O108: 0.8911376982 | P108: 0.9211242571 | Q108: 0.9475455075 | R108: 0.9698414719 | S108: 0.9874852217 | T108: 1 | U108: 0.9930719178 | V108: 0.9919759337
A109: 19 | B109: 9.5 | C109: 0.4404861338 | D109: 0.4746925905 | E109: 0.5103601666 | F109: 0.5473127394 | G109: 0.5853278314 | H109: 0.6241342071 | I109: 0.6634105179 | J109: 0.7027852496 | K109: 0.7418382176 | L109: 0.7801038328 | M109: 0.817076322 | N109: 0.8522170257 | O109: 0.884963823 | P109: 0.9147426325 | Q109: 0.9409808343 | R109: 0.9631223305 | S109: 0.9806438429 | T109: 0.9930719178 | U109: 1 | V109: 0.9988963699
A110: 20 | B110: 10 | C110: 0.44 | D110: 0.4741687054 | E110: 0.5097969177 | F110: 0.5467087085 | G110: 0.584681846 | H110: 0.6234453938 | I110: 0.662678358 | J110: 0.7020096346 | K110: 0.7410195026 | L110: 0.7792428867 | M110: 0.8161745719 | N110: 0.8512764933 | O110: 0.8839871502 | P110: 0.913733095 | Q110: 0.9399423395 | R110: 0.9620593996 | S110: 0.9795615748 | T110: 0.9919759337 | U110: 0.9988963699 | V110: 1
